[Event "53rd Indian Junior Open-ch 2024"]
[Site "Karnal"]
[Date "2024.09.20"]
[Round "7.2"]
[White "Madhvendra Pratap Sharma"]
[Black "Daksh Goyal"]
[Result "1-0"]
[ECO "B30"]
[WhiteElo "2061"]
[BlackElo "2026"]
[Annotator "RC"]
[PlyCount "113"]
[EventDate "2024.09.16"]
[EventType "swiss"]
[EventCountry "IND"]
[SourceTitle "playchess.com"]
[Source "ChessBase"]
[SourceQuality "1"]
[TimeControl "5400+30"]

1. e4 {[%emt 0:00:09]} c5 {[%emt 0:02:48]} 2. Nf3 {[%emt 0:00:09]} Nc6 {[%emt 0:00:01]} 3. Nc3 {[%emt 0:02:02]} e5 {[%emt 0:01:17]} 4. Bc4 {[%emt 0:01:17]} g6 {[%emt 0:00:28]} 5. d3 {[%emt 0:00:36]} h6 {[%emt 0:00:30]} 6. Nd5 {[%emt 0:05:58]} Bg7 {[%emt 0:02:05]} 7. Be3 {[%emt 0:02:57]} d6 {[%emt 0:00:55]} 8. c3 {[%emt 0:05:50]} Nf6 {[%emt 0:18:21]} 9. h3 {[%emt 0:03:32]} Be6 {[%emt 0:13:15]} 10. Qb3 {[%emt 0:08:14]} Nxd5 {[%emt 0:11:13]} 11. Bxd5 {[%emt 0:10:19]} Bxd5 {[%emt 0:02:10]} 12. Qxd5 {[%emt 0:03:55]} Qe7 {[%emt 0:04:30]} 13. h4 {[%emt 0:03:05]} O-O {[%emt 0:09:20]} 14. a3 {[%emt 0:07:59]} Nd8 {[%emt 0:11:12]} 15. h5 {[%emt 0:05:46]} g5 {[%emt 0:02:36]} 16. Nd2 {[%emt 0:05:50]} Ne6 {[%emt 0:01:49]} 17. b4 {[%emt 0:02:05]} Nf4 {[%emt 0:03:45]} 18. Bxf4 {[%emt 0:00:43]} exf4 {[%emt 0:00:02]} 19. Rc1 {[%emt 0:01:21]} Rac8 {[%emt 0:05:04]} 20. b5 {[%emt 0:02:39]} Rc7 {[%emt 0:05:09]} 21. Nc4 {[%emt 0:01:47]} Qe6 {[%emt 0:00:50]} 22. Kd2 {[%emt 0:03:52]} Rd7 {[%emt 0:01:27]} 23. f3 {[%emt 0:01:18]} Rfd8 {[%emt 0:00:34]} 24. Rhe1 {[%emt 0:02:41]} Kf8 {[%emt 0:00:06]} 25. a4 {[%emt 0:01:07]} Re8 {[%emt 0:01:09]} 26. Kc2 {[%emt 0:06:37]} Bf6 {[%emt 0:00:37]} 27. Kb3 {[%emt 0:04:08]} Red8 {[%emt 0:01:28]} 28. Re2 {[%emt 0:07:07]} Re8 {[%emt 0:00:35]} 29. Rce1 {[%emt 0:00:39]} Bg7 {[%emt 0:00:18]} 30. a5 {[%emt 0:00:49]} Bh8 {[%emt 0:00:57]} 31. Qxe6 {[%emt 0:00:47]} Rxe6 {[%emt 0:00:48]} 32. a6 {[%emt 0:00:41]} bxa6 {[%emt 0:00:25]} 33. bxa6 {[%emt 0:00:02]} Bf6 {[%emt 0:00:01]} 34. Na3 {[%emt 0:00:52]} d5 {[%emt 0:00:28]} 35. exd5 {[%emt 0:00:16]} Rxa6 {[%emt 0:00:05]} 36. Re8+ {[%emt 0:00:33]} Kg7 {[%emt 0:00:01]} 37. Nb5 {[%emt 0:00:43]} Rxd5 {[%emt 0:00:48]} 38. Kc4 {[%emt 0:00:06]} Rd7 {[%emt 0:00:08]} 39. Rc8 {[%emt 0:00:55]} Ra4+ {[%emt 0:00:00]} 40. Kxc5 {[%emt 0:00:29]} Rxd3 {[%emt 0:00:24]} 41. c4 {[%emt 0:00:15]} Re3 {[%emt 0:00:44]} 42. Rc1 {[%emt 0:00:24]} Ra2 {[%emt 0:02:05]} 43. Nc7 {[%emt 0:00:47]} Be5 {[%emt 0:00:55]} 44. Ne8+ {[%emt 0:00:35]} Kh7 {[%emt 0:00:05]} 45. Rd1 {[%emt 0:00:21]} Ra5+ {[%emt 0:00:34]} 46. Kc6 {[%emt 0:00:36]} Rc3 {[%emt 0:00:17]} 47. Kb7 {[%emt 0:00:13]} Rb3+ {[%emt 0:01:06]} 48. Ka8 {[%emt 0:00:02]} Bg7 {[%emt 0:00:29]} 49. Rd7 {[%emt 0:00:51]} Rf5 {[%emt 0:00:04]} 50. Nd6 {[%emt 0:00:23]} Rd3 {[%emt 0:00:53]} 51. Rcc7 {[%emt 0:00:21]} Rf6 {[%emt 0:00:32]} 52. Ne8 {[%emt 0:00:17]} Re6 {[%emt 0:00:28]} 53. Rxd3 {[%emt 0:00:03]} Rxe8+ {[%emt 0:00:02]} 54. Kxa7 {[%emt 0:00:01]} Re2 {[%emt 0:00:36]} 55. Rxf7 {[%emt 0:00:15]} Kg8 {[%emt 0:00:02]} 56. Rc7 {[%emt 0:00:15]} Bf6 {[%emt 0:00:28]} 57. Rdd7 {[%emt 0:00:12]} 1-0

[Event "53rd Indian Junior Open-ch 2024"]
[Site "Karnal"]
[Date "2024.09.20"]
[Round "7.3"]
[White "Arshpreet Singh"]
[Black "Manish Anto Cristiano F"]
[Result "0-1"]
[ECO "C95"]
[WhiteElo "1905"]
[BlackElo "2364"]
[Annotator "TA"]
[PlyCount "110"]
[EventDate "2024.09.16"]
[EventType "swiss"]
[EventCountry "IND"]
[SourceTitle "playchess.com"]
[Source "ChessBase"]
[SourceQuality "1"]
[TimeControl "5400+30"]

{[%evp 32,110,25,27,29,34,34,12,14,-16,-16,-18,-22,-22,6,0,0,-95,-110,-101,-120,-136,-132,-161,-82,-136,-116,-111,-102,-109,-81,-97,-69,-67,-72,-58,-43,-59,-33,-43,-27,-66,-67,-60,-68,-61,-54,-82,-81,-84,-85,-94,-91,-797,-682,-853,-815,-1516,-1535,-3466,-3289,-29976,-29977,-29977,-29977,-29980,-29981,-29981,-29982,-29983,-29984,-29984,-29985,-29985,-29986,-29986,-29987,-29988,-29989,-29988,-29989]} 1. e4 {[%emt 0:00:12]} e5 {[%emt 0:01:40]} 2. Nf3 {[%emt 0:00:08]} Nc6 {[%emt 0:00:07]} 3. Bb5 {[%emt 0:00:03]} a6 {[%emt 0:01:11]} 4. Ba4 {[%emt 0:00:02]} Nf6 {[%emt 0:00:14]} 5. O-O {[%emt 0:00:08]} Be7 {[%emt 0:01:05]} 6. Re1 {[%emt 0:00:22]} b5 {[%emt 0:00:13]} 7. Bb3 {[%emt 0:00:01]} O-O {[%emt 0:00:13]} 8. c3 {[%emt 0:03:37]} d6 {[%emt 0:00:57]} 9. h3 {[%emt 0:00:30]} Nb8 {[%emt 0:00:20]} 10. d4 {[%emt 0:00:04]} Nbd7 {[%emt 0:00:07]} 11. Nbd2 {[%emt 0:03:50]} Bb7 {[%emt 0:00:25]} 12. Bc2 {[%emt 0:00:01]} Re8 {[%emt 0:00:49]} 13. Nf1 {[%emt 0:00:02]} Bf8 {[%emt 0:00:16]} 14. Ng3 {[%emt 0:00:02]} g6 {[%emt 0:00:15]} 15. Bg5 {[%emt 0:00:08]} h6 {[%emt 0:00:25]} 16. Bd2 {[%emt 0:00:03]} Bg7 {[%emt 0:00:32]} 17. a4 {[%emt 0:00:32]} c5 {[%emt 0:05:44]} 18. d5 {[%emt 0:07:54]} c4 {[%emt 0:00:19]} 19. axb5 {[%emt 0:16:18]} axb5 {[%emt 0:00:19] The position is equal.} 20. h4 {[%emt 0:01:03]} Rxa1 {[%emt 0:12:04]} 21. Qxa1 {[%emt 0:02:13]} Nc5 {[%emt 0:05:35]} 22. h5 {[%emt 0:06:11]} Nxh5 {[%emt 0:04:16]} 23. Nxh5 {[%emt 0:00:30]} gxh5 {[%emt 0:00:09]} 24. g3 {[%emt 0:02:21] [#]} (24. Be3 $11 {keeps the balance.}) 24... f5 $1 $17 {[%emt 0:04:56]} 25. exf5 {[%emt 0:08:28]} Bxd5 {[%emt 0:01:03]} 26. Nh4 {[%emt 0:00:55]} e4 {[%emt 0:09:36]} 27. Qd1 {[%emt 0:02:05]} Nd3 {[%emt 0:04:20]} (27... Bf7 $19 28. Ng6 Nd3 29. Bxd3 exd3 30. Rxe8+ Qxe8 31. Qxh5 Qe4) 28. f6 {[%emt 0:11:25]} (28. Bxd3 $142 exd3 29. Ng6) 28... Qxf6 {[%emt 0:05:55]} 29. Bxd3 {[%emt 0:00:07]} cxd3 {[%emt 0:03:02]} 30. Qxh5 {[%emt 0:00:26]} Re5 {[%emt 0:03:05] Active counter play!} 31. Qg4 {[%emt 0:01:33]} Qe6 {[%emt 0:00:50]} (31... Be6 {is more complex.} 32. Qg6 Bf7 33. Qxf6 Bxf6 34. f3 d5) 32. Qxe6+ {[%emt 0:10:03]} Rxe6 {[%emt 0:01:09]} (32... Bxe6 33. Ng6 Rg5 34. Nf4 $11 (34. Bxg5 $2 hxg5 35. Ne7+ Kf8 $19)) 33. Nf5 {[%emt 0:01:14]} Bf8 {[%emt 0:04:27]} 34. Nd4 {[%emt 0:01:30]} Re7 {[%emt 0:05:52]} 35. Ra1 {[%emt 0:06:00][%cal Oa1a5] Against Ra7} Bg7 {[%emt 0:08:23]} 36. Nxb5 {[%emt 0:07:31]} Rb7 {[%emt 0:00:40]} 37. c4 {[%emt 0:03:30]} Bc6 {[%emt 0:01:40]} (37... Bxc4 $2 {is the wrong capture.} 38. Nxd6 Rxb2 (38... Rc7 $2 39. Rc1 $18) 39. Nxc4 $18) (37... Bxb2 38. Ra8+ Kh7 39. Nxd6 $16) 38. Ra8+ {[%emt 0:01:38]} Kh7 {[%emt 0:00:41] Hoping for ...Rxb5.} 39. Ra7 {[%emt 0:00:22]} Rxa7 {[%emt 0:04:45]} 40. Nxa7 {[%emt 0:00:11][%mdl 4096] Endgame. KBB-KBN} Bd7 {[%emt 0:00:05]} 41. Nb5 {[%emt 0:02:19]} d5 {[%emt 0:01:34]} 42. b3 {[%emt 0:03:21][%mdl 8192] This move loses the game for White.} (42. Nd6 $17) 42... Bxb5 $19 {[%emt 0:00:16]} 43. cxb5 {[%emt 0:00:04] Threatens to win with b6. KB-KB} Bd4 {[%emt 0:00:05]} 44. Kf1 {[%emt 0:01:22] [#]} Bb6 $1 {[%emt 0:00:04]} 45. b4 {[%emt 0:01:16]} d4 {[%emt 0:00:23]} 46. Bf4 {[%emt 0:00:30]} e3 {[%emt 0:00:45] Black mates.} 47. fxe3 {[%emt 0:00:26]} dxe3 {[%emt 0:00:01]} 48. Bd6 {[%emt 0:00:49]} Bd4 {[%emt 0:00:46]} 49. Bf4 {[%emt 0:00:47]} h5 {[%emt 0:00:18]} 50. Bxe3 {[%emt 0:00:50]} Bxe3 {[%emt 0:00:05] KB-K3P} 51. Ke1 {[%emt 0:00:07]} Kg6 {[%emt 0:00:08]} 52. b6 {[%emt 0:00:02]} Kf5 {[%emt 0:01:15]} 53. b7 {[%emt 0:00:06]} Ba7 {[%emt 0:00:04]} 54. Kd2 {[%emt 0:00:02]} Ke4 {[%emt 0:00:07]} 55. b5 {[%emt 0:00:08]} Bb8 {[%emt 0:14:25] Weighted Error Value: White=0.60/Black=0.08 (flawless) .  Loses game:     	White=1     	---        Mistake:       	White=2     	Black=1      Inaccurate:     	White=3     	Black=2      OK:         	White=10    	Black=5      Best:        	White=2     	Black=4      Brilliant:      	---       	Black=1} 0-1

[Event "53rd Indian Junior Open-ch 2024"]
[Site "Karnal"]
[Date "2024.09.20"]
[Round "7.4"]
[White "Sadbhav Rautela"]
[Black "Sourath Biswas"]
[Result "0-1"]
[ECO "C00"]
[WhiteElo "1817"]
[BlackElo "2305"]
[Annotator "RC"]
[PlyCount "52"]
[EventDate "2024.09.16"]
[EventType "swiss"]
[EventCountry "IND"]
[SourceTitle "playchess.com"]
[Source "ChessBase"]
[SourceQuality "1"]
[TimeControl "5400+30"]

1. e4 {[%emt 0:00:46]} c5 {[%emt 0:00:17]} 2. Nf3 {[%emt 0:00:18]} e6 {[%emt 0:00:24]} 3. g3 {[%emt 0:00:02]} Nc6 {[%emt 0:00:20]} 4. Bg2 {[%emt 0:00:02]} Nf6 {[%emt 0:01:59]} 5. Qe2 {[%emt 0:00:05]} d5 {[%emt 0:00:14]} 6. d3 {[%emt 0:05:13]} Be7 {[%emt 0:03:20]} 7. O-O {[%emt 0:01:16]} b5 {[%emt 0:03:05]} 8. exd5 {[%emt 0:04:01]} exd5 {[%emt 0:00:27]} 9. c4 {[%emt 0:00:20]} bxc4 {[%emt 0:00:45]} 10. dxc4 {[%emt 0:00:30]} Ba6 {[%emt 0:01:42]} 11. Ne5 {[%emt 0:06:29]} Nd4 {[%emt 0:02:54]} 12. Qd1 {[%emt 0:02:10]} O-O {[%emt 0:00:10]} 13. Nc3 {[%emt 0:08:37]} Qc7 {[%emt 0:12:58]} 14. Re1 {[%emt 0:05:57]} Bd6 {[%emt 0:00:20]} 15. f4 {[%emt 0:00:12]} dxc4 {[%emt 0:10:51]} 16. Bxa8 {[%emt 0:12:18]} Rxa8 {[%emt 0:00:10]} 17. a4 {[%emt 0:14:46]} Rd8 {[%emt 0:00:25]} 18. Ra3 {[%emt 0:13:27]} Bb7 {[%emt 0:00:46]} 19. Kf2 {[%emt 0:06:59]} h5 {[%emt 0:03:17]} 20. Nxc4 {[%emt 0:05:37]} Ng4+ {[%emt 0:00:08]} 21. Kf1 {[%emt 0:00:19]} Nxh2+ {[%emt 0:01:27]} 22. Kf2 {[%emt 0:00:10]} Ng4+ {[%emt 0:00:04]} 23. Kf1 {[%emt 0:00:05]} Qc6 {[%emt 0:00:39]} 24. Ne4 {[%emt 0:00:13]} f5 {[%emt 0:00:18]} 25. Ncxd6 {[%emt 0:02:28]} Rxd6 {[%emt 0:00:06]} 26. Rb3 {[%emt 0:00:45]} fxe4 {[%emt 0:01:06]} 0-1

[Event "53rd Indian Junior Open-ch 2024"]
[Site "Karnal"]
[Date "2024.09.20"]
[Round "7.5"]
[White "Adireddy Arjun"]
[Black "Sri Charan Sandipagu"]
[Result "1-0"]
[ECO "B33"]
[WhiteElo "2343"]
[BlackElo "1964"]
[Annotator "TA"]
[PlyCount "89"]
[EventDate "2024.09.16"]
[EventType "swiss"]
[EventCountry "IND"]
[SourceTitle "playchess.com"]
[Source "ChessBase"]
[SourceQuality "1"]
[TimeControl "5400+30"]

{[%evp 25,89,52,66,31,62,71,68,58,80,0,0,-5,-11,0,-7,-4,-10,-8,-5,0,15,19,2,10,24,45,81,46,84,91,89,87,94,88,97,81,114,104,134,116,133,145,341,356,356,351,980,243,1079,1072,1058,1056,29982,29983,29982,29982,29985,29986,29985,29986,29991,29991,29991,29992,29996,29993]} 1. e4 {[%emt 0:00:28]} c5 {[%emt 0:00:23]} 2. Nf3 {[%emt 0:00:12][%cal Bg1f3,Bf3d4,Bd4b5][%mdl 32]} Nc6 {[%emt 0:00:04]} 3. d4 {[%emt 0:00:07]} cxd4 {[%emt 0:00:06]} 4. Nxd4 {[%emt 0:00:05]} e5 {[%emt 0:00:05]} 5. Nb5 {[%emt 0:01:03]} Nf6 {[%emt 0:00:07]} 6. N1c3 {[%emt 0:08:26]} d6 {[%emt 0:00:07]} 7. Bg5 {[%emt 0:00:12]} a6 {[%emt 0:00:11]} 8. Na3 {[%emt 0:00:05]} b5 {[%emt 0:00:05]} 9. Bxf6 {[%emt 1:24:22]} gxf6 {[%emt 0:00:07]} 10. Nd5 {[%emt 0:00:00]} f5 {[%emt 0:00:07]} 11. Bd3 {[%emt 0:00:00]} Be6 {[%emt 0:00:12]} 12. c3 {[%emt 0:00:00]} Bg7 {[%emt 0:04:39]} 13. Qh5 {[%emt 0:00:00]} f4 {[%emt 0:02:16]} 14. g3 {[%emt 0:00:00]} Bxd5 {[%emt 0:30:55]} 15. exd5 {[%emt 0:00:00]} Ne7 {[%emt 0:00:04][%cal Bc6e7,Be7d5,Bd5f4,Bf4d3][%mdl 32]} 16. gxf4 {[%emt 0:00:00] White has more active pieces. White is slightly better.} (16. Bxh7 $2 Ng8 17. gxf4 Nf6 $19) 16... Nxd5 {[%emt 0:04:34]} 17. fxe5 {[%emt 0:00:00]} (17. Bxh7 $2 Nxf4 (17... Nf6 $2 18. Qf3 $19) 18. Qf3 Rxh7 $19) ({White should play} 17. Qg4 $1 $16 {[%cal Rg4g7]} O-O (17... Nxf4 $2 18. Qxg7 Nxd3+ 19. Kd2 $18) 18. fxe5) 17... Nf4 $11 {[%emt 0:01:18]} 18. Qf3 {[%emt 0:00:00]} Nxd3+ {[%emt 0:00:24]} 19. Qxd3 {[%emt 0:00:00]} dxe5 {[%emt 0:00:52]} 20. Rd1 {[%emt 0:00:00][%cal Ba1d1,Bd1d3,Bd3e3][%mdl 32]} Qxd3 {[%emt 0:00:29]} 21. Rxd3 {[%emt 0:00:00]} Ke7 {[%emt 0:01:21]} 22. Ke2 {[%emt 0:00:00]} Ke6 {[%emt 0:03:59]} 23. Rhd1 {[%emt 0:00:00]} Bf8 {[%emt 0:00:13] Dodges Rd6+} 24. Nc2 {[%emt 0:00:00][%cal Of2f4]} Be7 {[%emt 0:03:53]} 25. Re3 $36 {[%emt 0:00:00][%mdl 2048] Threatens to win with f4. White has good play.} f6 {[%emt 0:08:52] [#]} 26. f4 $1 {[%emt 0:00:00]} Bc5 {[%emt 0:09:09]} 27. Nd4+ {[%emt 0:00:00]} Bxd4 {[%emt 0:00:09]} 28. cxd4 $16 {[%emt 0:00:00][%mdl 4096] Endgame. KRR-KRR} e4 {[%emt 0:00:09]} 29. Rxe4+ {[%emt 0:00:00]} Kd5 {[%emt 0:00:05] [#]} 30. Kd3 {[%emt 0:00:00]} Rhg8 {[%emt 0:03:59]} 31. Rc1 {[%emt 0:05:04]} Rg2 {[%emt 0:00:10]} 32. Rc5+ {[%emt 0:02:49]} Kd6 {[%emt 0:00:11]} 33. f5 {[%emt 0:00:33] Strongly threatening Re6+.} Rxh2 $2 {[%emt 0:00:54] This costs Black the game.} (33... Kd7 $16 34. Re6 Rxb2 35. Rxf6 Rxa2 36. Rf7+ Kd6 37. Rxh7 Re8 38. Rh6+ Kd7) 34. Re6+ $18 {[%emt 0:00:03]} Kd7 {[%emt 0:00:05]} 35. Rxf6 {[%emt 0:01:32]} Rxb2 $2 {[%emt 0:00:29]} (35... Rh1 36. Re5 Rh3+ 37. Ke4 Rd8 38. Rxa6 (38. Rd5+ Kc7 $18) 38... Rh4+ 39. Ke3 Kc7 40. Re7+ (40. Rxb5 Rdxd4 41. Ra7+ Kc6 $18) 40... Kb8) 36. d5 $2 {[%emt 0:02:09]} (36. Rf7+ Kd6 37. Re5 (37. Rxh7 Rxa2 38. Rh6+ Kd7 $18)) 36... Rxa2 $2 {[%emt 0:01:07]} (36... Rb1 37. Rcc6 Rh1 38. Rf7+ (38. Rxa6 Rxa6 39. Rxa6 h5 $16) 38... Ke8) 37. d6 {[%emt 0:00:09]} Ra7 {[%emt 0:00:44] Repels Rc7+} 38. Re5 {[%emt 0:00:42] White threatens Re7+ and mate.} Ra8 {[%emt 0:08:13]} 39. Re7+ {[%emt 0:00:50] White mates.} Kc6 {[%emt 0:00:04]} 40. d7+ {[%emt 0:00:35]} ({Inferior is} 40. Rxh7 Rd8 $14) 40... Kc5 {[%emt 0:00:05]} 41. Re8 {[%emt 0:00:51]} ({Weaker is} 41. Rxh7 Rd8 $16) 41... Ra3+ {[%emt 0:00:06]} 42. Ke4 {[%emt 0:00:39]} Ra7 {[%emt 0:00:19]} 43. Rc8+ {[%emt 0:00:18]} Kb4 {[%emt 0:00:11]} 44. d8=Q {[%emt 0:00:04]} Rg7 {[%emt 0:00:20]} 45. Qf8+ {[%emt 0:00:04] Weighted Error Value: White=0.29 (precise) /Black=0.43.  Loses game:     	---       	Black=1      Mistake:       	White=2     	Black=2      Inaccurate:     	---       	Black=4      OK:         	White=7     	Black=8      Best:        	White=4     	Black=2      Strong:       	White=1     	---} 1-0

[Event "53rd Indian Junior Open-ch 2024"]
[Site "Karnal"]
[Date "2024.09.20"]
[Round "7.6"]
[White "Bhattacharyya Soham"]
[Black "Lakshmi Charan Naidu G"]
[Result "1-0"]
[ECO "E04"]
[WhiteElo "2425"]
[BlackElo "1912"]
[Annotator "TA"]
[PlyCount "65"]
[EventDate "2024.09.16"]
[EventType "swiss"]
[EventCountry "IND"]
[SourceTitle "playchess.com"]
[Source "ChessBase"]
[SourceQuality "1"]
[TimeControl "5400+30"]

{[%evp 13,65,27,42,38,32,19,29,32,27,5,19,-27,-16,-33,0,-9,-8,-37,-31,-43,-28,-32,-16,-41,2,-68,-44,-40,-58,-53,0,0,160,130,462,174,325,326,335,331,897,476,699,424,402,358,1578,1222,29987,29986,29986,29987,29992,29992]} 1. d4 {[%emt 0:00:33]} Nf6 {[%emt 0:00:21]} 2. c4 {[%emt 0:00:06]} e6 {[%emt 0:00:09]} 3. g3 {[%emt 0:00:06]} d5 {[%emt 0:00:08]} 4. Bg2 {[%emt 0:00:06]} dxc4 {[%emt 0:00:08]} 5. Nf3 {[%emt 0:00:09]} a6 {[%emt 0:00:08]} 6. O-O {[%emt 0:00:37]} Nc6 {[%emt 0:00:21]} 7. e3 {[%emt 0:00:08]} Rb8 {[%emt 0:00:44]} 8. Qe2 {[%emt 0:00:22]} b5 {[%emt 0:03:44]} 9. b3 {[%emt 0:00:13]} cxb3 {[%emt 0:01:35]} 10. axb3 {[%emt 0:00:05] White has an edge.} Be7 {[%emt 0:03:39]} 11. Rd1 {[%emt 0:04:46][%mdl 1024] White has compensation.} Bb7 {[%emt 0:09:01]} 12. e4 {[%emt 0:05:34]} (12. Bd2 {was preferrable.}) 12... O-O {[%emt 0:02:38]} 13. Nc3 {[%emt 0:02:48]} Re8 {[%emt 0:02:45]} 14. Bb2 {[%emt 0:07:35]} Nb4 {[%emt 0:05:19]} 15. Rac1 {[%emt 0:06:49]} Bf8 {[%emt 0:02:16]} 16. h4 {[%emt 0:03:29]} Qc8 {[%emt 0:10:58]} 17. e5 {[%emt 0:02:04]} Nd7 {[%emt 0:01:19]} 18. Ne4 {[%emt 0:05:16][%cal Oe4d6]} Bd5 {[%emt 0:02:49]} 19. Qe3 {[%emt 0:07:28]} ({White should play} 19. Nd6 $1 $11 cxd6 20. Rxc8 Rexc8 21. Ng5) 19... Qb7 {[%emt 0:03:32]} 20. Nfg5 {[%emt 0:00:15][%cal Bf3g5,Bg5h3,Bh3f4][%mdl 32]} h6 {[%emt 0:17:25]} 21. Nh3 {[%emt 0:00:55]} Rbc8 {[%emt 0:00:33]} (21... a5 $15) 22. Nf4 $11 {[%emt 0:00:53]} c5 $2 {[%emt 0:03:24]} 23. dxc5 $16 {[%emt 0:02:47] Strongly threatening Nxd5. White is more active.} Na2 $2 {[%emt 0:03:04][%mdl 8192] This move loses the game for Black.} (23... Bxe4 $16 {is more resistant.} 24. Bxe4 Nc6) 24. Ra1 $2 {[%emt 0:08:04]} (24. Nxd5 exd5 25. Nd6 Bxd6 26. Bxd5 (26. cxd6 Nxc1 27. Bxd5 Qb6 $18)) 24... Nxc5 $2 {[%emt 0:01:57]} (24... Nb4) 25. Nd6 $18 {[%emt 0:00:13]} (25. Nxd5 exd5 26. Nf6+ (26. Nxc5 Bxc5 27. Bxd5 Qxd5 $14) 26... gxf6 $16) 25... Bxd6 {[%emt 0:00:16]} 26. exd6 {[%emt 0:00:03] Qd4 would now be deadly.} (26. Rxa2 Bxg2 27. exd6 Be4 $19) 26... Qd7 $2 {[%emt 0:09:12]} (26... Bxg2 27. Nxg2 (27. Rxa2 Bh1 $17) 27... Red8 (27... Nb4 $2 28. Qd4 $18) 28. Rxa2 Nd7) 27. Rxa2 {[%emt 0:04:01][%cal Ob2g7] Hoping for Bxg7!} Bxb3 {[%emt 0:00:30]} (27... Bxg2 $142 28. Nxg2 (28. Kxg2 Qc6+ 29. Kh2 e5 $18) 28... Rc6) 28. Raa1 {[%emt 0:05:26]} ({Don't blunder} 28. Qe5 $2 f6 (28... Bxd1 29. Qxg7#) 29. Qe2 Bxa2 $19) 28... Bxd1 {[%emt 0:00:19]} 29. Rxd1 {[%emt 0:00:06] Black is weak on the dark squares} Na4 $2 {[%emt 0:04:01] [#]} (29... f6 30. Qd2 Kh7) 30. Bxg7 $1 {[%emt 0:02:29][%mdl 512] White threatens Nh5 and mate.} Kxg7 {[%emt 0:03:06]} (30... Rc5 31. Be5) 31. Nh5+ {[%emt 0:00:28] White mates.} Kg6 {[%emt 0:00:07] [#]} 32. Nf6 $1 {[%emt 0:00:08][%mdl 512]} Rc3 {[%emt 0:01:23]} (32... Nc3 33. h5+) 33. Be4+ {[%emt 0:00:56] Weighted Error Value: White=0.67/Black=0.87.  Loses game:     	---       	Black=1      Mistake:       	White=3     	Black=6      Inaccurate:     	White=2     	Black=2      OK:         	White=7     	Black=6      Best:        	White=1     	---        Brilliant:      	White=1     	---} 1-0